[Event "Early-Titled-Tuesday-Blitz-October-24-2023"]
[Site "Chess.com"]
[Date "2023.10.24"]
[Round "6"]
[White "ozates"]
[Black "brm72"]
[Result "0-1"]
[WhiteElo "2721"]
[BlackElo "2565"]
[TimeControl "180+1"]
[EndTime "9:04:49 PDT"]
[Termination "brm72 won by resignation"]

1. e4 {[%clk 0:03:00.9]} 1... c5 {[%clk 0:02:59.9]} 2. Nf3 {[%clk 0:03:01]} 2...
d6 {[%clk 0:03:00.2]} 3. Bb5+ {[%clk 0:03:01.6]} 3... Nd7 {[%clk 0:03:00.1]} 4.
c3 {[%clk 0:03:01.1]} 4... a6 {[%clk 0:02:55.7]} 5. Ba4 {[%clk 0:02:58]} 5... b5
{[%clk 0:02:55.5]} 6. Bc2 {[%clk 0:02:58]} 6... Ngf6 {[%clk 0:02:55.1]} 7. d4
{[%clk 0:02:53.8]} 7... Bb7 {[%clk 0:02:51.8]} 8. Nbd2 {[%clk 0:02:51.6]} 8...
g6 {[%clk 0:02:51.2]} 9. O-O {[%clk 0:02:51.1]} 9... Bg7 {[%clk 0:02:51.2]} 10.
Re1 {[%clk 0:02:51.7]} 10... O-O {[%clk 0:02:51.1]} 11. Nf1 {[%clk 0:02:50.3]}
11... cxd4 {[%clk 0:02:48.8]} 12. cxd4 {[%clk 0:02:49.8]} 12... Rc8 {[%clk
0:02:48.4]} 13. Bb1 {[%clk 0:02:49.9]} 13... Qc7 {[%clk 0:02:45.2]} 14. Ng3
{[%clk 0:02:49.1]} 14... e5 {[%clk 0:02:36.4]} 15. h3 {[%clk 0:02:41.6]} 15...
d5 {[%clk 0:02:01.4]} 16. dxe5 {[%clk 0:02:28.9]} 16... Nxe5 {[%clk 0:01:59.2]}
17. Nxe5 {[%clk 0:02:28.8]} 17... Qxe5 {[%clk 0:01:58.7]} 18. f4 {[%clk
0:02:29.5]} 18... Qc7 {[%clk 0:01:50.7]} 19. e5 {[%clk 0:02:30.4]} 19... Nd7
{[%clk 0:01:33.9]} 20. Be3 {[%clk 0:02:24.9]} 20... Nc5 {[%clk 0:01:29.9]} 21.
Bd4 {[%clk 0:02:16.8]} 21... Ne6 {[%clk 0:01:27.1]} 22. f5 {[%clk 0:02:10.5]}
22... Nxd4 {[%clk 0:01:14.4]} 23. Qxd4 {[%clk 0:02:08.5]} 23... Rfe8 {[%clk
0:01:14.8]} 24. fxg6 {[%clk 0:01:38.2]} 24... hxg6 {[%clk 0:01:15.7]} 25. Nf1
{[%clk 0:01:11.3]} 25... Bxe5 {[%clk 0:01:11.8]} 26. Qf2 {[%clk 0:01:11.3]}
26... Bd6 {[%clk 0:00:52.8]} 27. Ne3 {[%clk 0:01:01.1]} 27... Bg3 {[%clk
0:00:49.8]} 28. Qf3 {[%clk 0:00:53.5]} 28... Bxe1 {[%clk 0:00:49.2]} 29. Ng4
{[%clk 0:00:54.2]} 29... Bh4 {[%clk 0:00:38.3]} 30. Bd3 {[%clk 0:00:49.6]} 30...
Kg7 {[%clk 0:00:27.5]} 31. Rf1 {[%clk 0:00:48.7]} 31... d4 {[%clk 0:00:19.5]}
32. Qd1 {[%clk 0:00:43.5]} 32... f5 {[%clk 0:00:19.2]} 33. Nh2 {[%clk
0:00:41.3]} 33... Re3 {[%clk 0:00:16.7]} 34. Be2 {[%clk 0:00:36.3]} 34... Rce8
{[%clk 0:00:14.7]} 35. Bf3 {[%clk 0:00:35.7]} 35... Bxf3 {[%clk 0:00:14.3]} 36.
Nxf3 {[%clk 0:00:35.6]} 36... Bf6 {[%clk 0:00:15]} 37. Qd2 {[%clk 0:00:30.7]}
37... Re2 {[%clk 0:00:14.7]} 38. Qd3 {[%clk 0:00:30.9]} 38... Qg3 {[%clk
0:00:14.5]} 39. Ne1 {[%clk 0:00:27.1]} 39... Qxd3 {[%clk 0:00:13.9]} 40. Nxd3
{[%clk 0:00:28]} 40... Rd2 {[%clk 0:00:13.9]} 41. Nf4 {[%clk 0:00:24.4]} 41...
Bg5 {[%clk 0:00:14]} 0-1

[Event "Early-Titled-Tuesday-Blitz-October-24-2023"]
[Site "Chess.com"]
[Date "2023.10.24"]
[Round "6"]
[White "howitzer14"]
[Black "MikeSailer"]
[Result "1-0"]
[WhiteElo "2927"]
[BlackElo "2038"]
[TimeControl "180+1"]
[EndTime "9:04:49 PDT"]
[Termination "howitzer14 won by resignation"]

1. d4 {[%clk 0:02:45.1]} 1... d5 {[%clk 0:02:57.6]} 2. e4 {[%clk 0:02:40.4]}
2... dxe4 {[%clk 0:02:56.5]} 3. Nc3 {[%clk 0:02:40]} 3... Nf6 {[%clk 0:02:55.1]}
4. f3 {[%clk 0:02:39.5]} 4... e3 {[%clk 0:02:54.5]} 5. Bxe3 {[%clk 0:02:39]}
5... c6 {[%clk 0:02:55.1]} 6. Bc4 {[%clk 0:02:35.6]} 6... Qd6 {[%clk 0:02:49.8]}
7. Nge2 {[%clk 0:02:34.7]} 7... Bf5 {[%clk 0:02:46.7]} 8. g4 {[%clk 0:02:34.3]}
8... Bg6 {[%clk 0:02:41.7]} 9. h4 {[%clk 0:02:28.6]} 9... h5 {[%clk 0:02:36.7]}
10. Nf4 {[%clk 0:02:28.2]} 10... Bh7 {[%clk 0:02:24.1]} 11. g5 {[%clk
0:02:24.9]} 11... Nd5 {[%clk 0:02:15]} 12. Ncxd5 {[%clk 0:02:11.4]} 12... cxd5
{[%clk 0:02:14.8]} 13. Bxd5 {[%clk 0:02:12.3]} 13... Nc6 {[%clk 0:02:09.9]} 14.
Kf2 {[%clk 0:02:11.5]} 14... e6 {[%clk 0:02:01.3]} 15. Be4 {[%clk 0:02:10.7]}
15... Bxe4 {[%clk 0:01:54.7]} 16. fxe4 {[%clk 0:02:11.6]} 16... O-O-O {[%clk
0:01:45.6]} 17. c3 {[%clk 0:02:03.7]} 17... e5 {[%clk 0:01:38.6]} 18. Nd5 {[%clk
0:02:03.3]} 18... exd4 {[%clk 0:01:37.8]} 19. cxd4 {[%clk 0:02:04.2]} 19... f5
{[%clk 0:01:21.7]} 20. gxf6 {[%clk 0:01:57.6]} 20... gxf6 {[%clk 0:01:19.1]} 21.
Qf3 {[%clk 0:01:56.7]} 21... Be7 {[%clk 0:01:05.3]} 22. Rag1 {[%clk 0:01:36.2]}
22... Rhg8 {[%clk 0:00:56]} 23. Qf5+ {[%clk 0:01:33.5]} 23... Qd7 {[%clk
0:00:45.3]} 24. Rxg8 {[%clk 0:00:52.4]} 24... Qxf5+ {[%clk 0:00:31.9]} 25. exf5
{[%clk 0:00:53.3]} 25... Rxg8 {[%clk 0:00:31.9]} 26. Rg1 {[%clk 0:00:48]} 26...
Rd8 {[%clk 0:00:19.8]} 27. Nf4 {[%clk 0:00:47.8]} 27... Nxd4 {[%clk 0:00:17.7]}
28. Rc1+ {[%clk 0:00:47.3]} 28... Kb8 {[%clk 0:00:14.3]} 29. Bxd4 {[%clk
0:00:43.9]} 29... Rxd4 {[%clk 0:00:14.1]} 30. Kf3 {[%clk 0:00:44.8]} 30... Bd6
{[%clk 0:00:12.4]} 31. Nxh5 {[%clk 0:00:37.5]} 31... Rxh4 {[%clk 0:00:11.8]} 32.
Nxf6 {[%clk 0:00:37.9]} 32... Rf4+ {[%clk 0:00:09.8]} 33. Ke3 {[%clk 0:00:37.6]}
33... a6 {[%clk 0:00:05.5]} 34. Ne4 {[%clk 0:00:36.1]} 34... Bc7 {[%clk
0:00:04.2]} 35. Rxc7 {[%clk 0:00:35.3]} 35... Rxe4+ {[%clk 0:00:03.8]} 36. Kxe4
{[%clk 0:00:35.3]} 36... Kxc7 {[%clk 0:00:04.7]} 37. Ke5 {[%clk 0:00:36.2]}
37... Kd7 {[%clk 0:00:05.2]} 38. Kf6 {[%clk 0:00:36.6]} 1-0

[Event "Early-Titled-Tuesday-Blitz-October-24-2023"]
[Site "Chess.com"]
[Date "2023.10.24"]
[Round "6"]
[White "Mystery2007"]
[Black "Boninknights"]
[Result "0-1"]
[WhiteElo "2451"]
[BlackElo "2311"]
[TimeControl "180+1"]
[EndTime "9:04:50 PDT"]
[Termination "Boninknights won on time"]

1. c4 {[%clk 0:03:00.9]} 1... Nf6 {[%clk 0:02:58.1]} 2. Nc3 {[%clk 0:02:58.6]}
2... g6 {[%clk 0:02:57.4]} 3. g3 {[%clk 0:02:56.9]} 3... Bg7 {[%clk 0:02:56.4]}
4. Bg2 {[%clk 0:02:57.5]} 4... O-O {[%clk 0:02:55.7]} 5. d3 {[%clk 0:02:57]}
5... Nc6 {[%clk 0:02:51.7]} 6. e3 {[%clk 0:02:57.1]} 6... e5 {[%clk 0:02:45]} 7.
Nge2 {[%clk 0:02:57.6]} 7... Ne7 {[%clk 0:02:41.2]} 8. O-O {[%clk 0:02:58.1]}
8... d5 {[%clk 0:02:40.1]} 9. cxd5 {[%clk 0:02:57.7]} 9... Nexd5 {[%clk
0:02:35.5]} 10. b3 {[%clk 0:02:57]} 10... c5 {[%clk 0:02:27.7]} 11. Bb2 {[%clk
0:02:56.9]} 11... Nb4 {[%clk 0:02:25.6]} 12. d4 {[%clk 0:02:54.4]} 12... cxd4
{[%clk 0:02:20.9]} 13. exd4 {[%clk 0:02:55.3]} 13... exd4 {[%clk 0:02:05.9]} 14.
Qxd4 {[%clk 0:02:53]} 14... Qxd4 {[%clk 0:01:56.7]} 15. Nxd4 {[%clk 0:02:53.9]}
15... Rd8 {[%clk 0:01:54.1]} 16. Ndb5 {[%clk 0:02:48.7]} 16... a6 {[%clk
0:01:45.3]} 17. Rad1 {[%clk 0:02:17.9]} 17... Rxd1 {[%clk 0:01:36.5]} 18. Rxd1
{[%clk 0:02:18.8]} 18... axb5 {[%clk 0:01:35.1]} 19. Rd8+ {[%clk 0:02:17.2]}
19... Bf8 {[%clk 0:01:34.8]} 20. Nxb5 {[%clk 0:01:33.3]} 20... Nd7 {[%clk
0:01:23.5]} 21. Bh3 {[%clk 0:00:57.5]} 21... Nb6 {[%clk 0:01:15.5]} 22. Nc7
{[%clk 0:00:42.1]} 22... Rxa2 {[%clk 0:01:09.1]} 23. Bc3 {[%clk 0:00:10.8]}
23... Bxh3 {[%clk 0:00:55.5]} 24. Ne8 {[%clk 0:00:09.4]} 24... Rc2 {[%clk
0:00:45.4]} 25. Nf6+ {[%clk 0:00:08.9]} 25... Kg7 {[%clk 0:00:45]} 26. Ne8+
{[%clk 0:00:02.4]} 26... Kh6 {[%clk 0:00:43.1]} 27. Bd2+ {[%clk 0:00:02.5]}
27... g5 {[%clk 0:00:37.8]} 28. f4 {[%clk 0:00:01.8]} 28... Bc5+ {[%clk
0:00:32.1]} 29. Kh1 {[%clk 0:00:02.3]} 29... N6d5 {[%clk 0:00:17.1]} 30. fxg5+
{[%clk 0:00:02.6]} 30... Kh5 {[%clk 0:00:13.6]} 31. Ng7+ {[%clk 0:00:01.8]}
31... Kg4 {[%clk 0:00:11.9]} 0-1

[Event "Early-Titled-Tuesday-Blitz-October-24-2023"]
[Site "Chess.com"]
[Date "2023.10.24"]
[Round "6"]
[White "LuisFSiles"]
[Black "WindWhistler11"]
[Result "0-1"]
[WhiteElo "2276"]
[BlackElo "2450"]
[TimeControl "180+1"]
[EndTime "9:04:55 PDT"]
[Termination "WindWhistler11 won by checkmate"]

1. e4 {[%clk 0:03:00.9]} 1... a6 {[%clk 0:02:58.7]} 2. d4 {[%clk 0:02:58.7]}
2... b5 {[%clk 0:02:57.7]} 3. Bd3 {[%clk 0:02:55.4]} 3... Bb7 {[%clk 0:02:57.7]}
4. Nf3 {[%clk 0:02:54.7]} 4... e6 {[%clk 0:02:57.5]} 5. O-O {[%clk 0:02:53.9]}
5... Be7 {[%clk 0:02:57.7]} 6. Re1 {[%clk 0:02:51.5]} 6... d6 {[%clk 0:02:57.9]}
7. Nbd2 {[%clk 0:02:49.4]} 7... Nd7 {[%clk 0:02:58.5]} 8. Nf1 {[%clk 0:02:49.4]}
8... g5 {[%clk 0:02:55.9]} 9. c4 {[%clk 0:02:24.3]} 9... bxc4 {[%clk 0:02:51.1]}
10. Bxc4 {[%clk 0:02:24]} 10... g4 {[%clk 0:02:49]} 11. N3d2 {[%clk 0:02:23.6]}
11... Ngf6 {[%clk 0:02:41]} 12. e5 {[%clk 0:02:10.3]} 12... Nd5 {[%clk
0:02:26.4]} 13. Qxg4 {[%clk 0:02:04.5]} 13... N7b6 {[%clk 0:02:24.9]} 14. Bb3
{[%clk 0:01:55.5]} 14... h5 {[%clk 0:02:17.4]} 15. Qg7 {[%clk 0:01:39.1]} 15...
Rf8 {[%clk 0:01:46.4]} 16. Ne4 {[%clk 0:01:34.5]} 16... Qd7 {[%clk 0:01:44.2]}
17. exd6 {[%clk 0:01:22.1]} 17... cxd6 {[%clk 0:01:38.2]} 18. Bg5 {[%clk
0:01:13]} 18... O-O-O {[%clk 0:01:23.2]} 19. Rac1+ {[%clk 0:01:06.9]} 19... Kb8
{[%clk 0:01:23.2]} 20. Bxe7 {[%clk 0:01:04]} 20... Qxe7 {[%clk 0:01:20.4]} 21.
Ne3 {[%clk 0:00:31.7]} 21... Rg8 {[%clk 0:01:13.8]} 22. Nxd5 {[%clk 0:00:20.4]}
22... Nxd5 {[%clk 0:01:08.8]} 23. Qh6 {[%clk 0:00:17.8]} 23... Rg4 {[%clk
0:00:54.5]} 24. Qxh5 {[%clk 0:00:15.7]} 24... Rdg8 {[%clk 0:00:51.6]} 25. g3
{[%clk 0:00:16.2]} 25... Nf4 {[%clk 0:00:51.3]} 26. Qa5 {[%clk 0:00:12.2]} 26...
Nh3+ {[%clk 0:00:46.2]} 27. Kf1 {[%clk 0:00:10.7]} 27... Rxe4 {[%clk 0:00:42.3]}
28. Rxe4 {[%clk 0:00:09.6]} 28... Bxe4 {[%clk 0:00:42.5]} 29. Qb6+ {[%clk
0:00:10.1]} 29... Qb7 {[%clk 0:00:42.3]} 30. Qxd6+ {[%clk 0:00:10.2]} 30... Ka8
{[%clk 0:00:42.7]} 31. Rc7 {[%clk 0:00:08.8]} 31... Bd3+ {[%clk 0:00:32.7]} 32.
Ke1 {[%clk 0:00:06.6]} 32... Qe4+ {[%clk 0:00:33.1]} 33. Kd2 {[%clk 0:00:05.1]}
33... Qe2+ {[%clk 0:00:29.7]} 34. Kc3 {[%clk 0:00:05.2]} 34... Qe1+ {[%clk
0:00:27]} 35. Kxd3 {[%clk 0:00:04.8]} 35... Nxf2+ {[%clk 0:00:27.6]} 36. Kc4
{[%clk 0:00:02.1]} 36... Qe2+ {[%clk 0:00:27.1]} 37. Kb4 {[%clk 0:00:02.2]}
37... Qb5+ {[%clk 0:00:27.1]} 38. Ka3 {[%clk 0:00:02.6]} 38... Nd3 {[%clk
0:00:20.8]} 39. Ba4 {[%clk 0:00:02]} 39... Qxb2# {[%clk 0:00:20]} 0-1

[Event "Early-Titled-Tuesday-Blitz-October-24-2023"]
[Site "Chess.com"]
[Date "2023.10.24"]
[Round "6"]
[White "deribas12345"]
[Black "krzyzan94"]
[Result "1-0"]
[WhiteElo "2582"]
[BlackElo "2750"]
[TimeControl "180+1"]
[EndTime "9:04:57 PDT"]
[Termination "deribas12345 won on time"]

1. d4 {[%clk 0:03:00.9]} 1... Nf6 {[%clk 0:03:00]} 2. c4 {[%clk 0:03:00.8]} 2...
e6 {[%clk 0:03:00.5]} 3. Nc3 {[%clk 0:03:01.1]} 3... Bb4 {[%clk 0:03:00.5]} 4.
a3 {[%clk 0:03:01.1]} 4... Bxc3+ {[%clk 0:02:58.7]} 5. bxc3 {[%clk 0:03:02]}
5... c5 {[%clk 0:02:59.1]} 6. f3 {[%clk 0:03:01.5]} 6... d5 {[%clk 0:02:51.5]}
7. e3 {[%clk 0:03:01]} 7... Nc6 {[%clk 0:02:47.4]} 8. Bd3 {[%clk 0:03:00.3]}
8... O-O {[%clk 0:02:44.6]} 9. Ne2 {[%clk 0:02:59.4]} 9... e5 {[%clk 0:02:29.5]}
10. cxd5 {[%clk 0:02:57.2]} 10... Nxd5 {[%clk 0:02:23.8]} 11. c4 {[%clk
0:02:53.4]} 11... Nf6 {[%clk 0:02:20.1]} 12. d5 {[%clk 0:02:52.8]} 12... Ne7
{[%clk 0:02:19.8]} 13. O-O {[%clk 0:02:47.6]} 13... Ne8 {[%clk 0:02:19.8]} 14.
Bb2 {[%clk 0:02:39.2]} 14... f6 {[%clk 0:02:17.7]} 15. Qc2 {[%clk 0:02:29.2]}
15... g6 {[%clk 0:02:00.8]} 16. f4 {[%clk 0:02:24.8]} 16... exf4 {[%clk
0:01:32.7]} 17. Rxf4 {[%clk 0:02:22.5]} 17... Nf5 {[%clk 0:01:28.4]} 18. e4
{[%clk 0:02:02.5]} 18... Ne3 {[%clk 0:01:13.7]} 19. Qd2 {[%clk 0:01:50.2]} 19...
Ng4 {[%clk 0:01:12.9]} 20. Raf1 {[%clk 0:01:45]} 20... Qd6 {[%clk 0:01:09.7]}
21. Nc3 {[%clk 0:00:52.6]} 21... Ne5 {[%clk 0:00:47]} 22. Nb5 {[%clk 0:00:49.8]}
22... Qe7 {[%clk 0:00:46.6]} 23. Be2 {[%clk 0:00:36.3]} 23... a6 {[%clk
0:00:39.5]} 24. d6 {[%clk 0:00:34.9]} 24... Qe6 {[%clk 0:00:39.4]} 25. Bxe5
{[%clk 0:00:29]} 25... axb5 {[%clk 0:00:36.5]} 26. Bc3 {[%clk 0:00:19]} 26...
Rxa3 {[%clk 0:00:20.4]} 27. cxb5 {[%clk 0:00:15.5]} 27... Ra2 {[%clk 0:00:20.2]}
28. Qe3 {[%clk 0:00:12.4]} 28... Bd7 {[%clk 0:00:08.8]} 29. e5 {[%clk
0:00:12.1]} 29... Kh8 {[%clk 0:00:09.2]} 30. Bc4 {[%clk 0:00:11.8]} 30... Bxb5
{[%clk 0:00:01.7]} 31. Bxe6 {[%clk 0:00:11.3]} 31... Re2 {[%clk 0:00:01.7]} 32.
Qf3 {[%clk 0:00:07.6]} 32... f5 {[%clk 0:00:01.7]} 33. Bd5 {[%clk 0:00:07.4]}
1-0

[Event "Early-Titled-Tuesday-Blitz-October-24-2023"]
[Site "Chess.com"]
[Date "2023.10.24"]
[Round "6"]
[White "Ural_bogatyr"]
[Black "GianmarcoVaR"]
[Result "0-1"]
[WhiteElo "2547"]
[BlackElo "2735"]
[TimeControl "180+1"]
[EndTime "9:04:59 PDT"]
[Termination "GianmarcoVaR won on time"]

1. d4 {[%clk 0:02:42.9]} 1... Nf6 {[%clk 0:03:00]} 2. Nc3 {[%clk 0:02:42.4]}
2... d5 {[%clk 0:02:59.9]} 3. Bf4 {[%clk 0:02:40.9]} 3... c5 {[%clk 0:02:57.3]}
4. e4 {[%clk 0:02:40.4]} 4... Nxe4 {[%clk 0:02:54.7]} 5. Nxe4 {[%clk 0:02:39.8]}
5... dxe4 {[%clk 0:02:54.9]} 6. dxc5 {[%clk 0:02:40.5]} 6... Qa5+ {[%clk
0:02:53.4]} 7. c3 {[%clk 0:02:41]} 7... Qxc5 {[%clk 0:02:52.1]} 8. Qa4+ {[%clk
0:02:41.5]} 8... Nc6 {[%clk 0:02:51.1]} 9. Qxe4 {[%clk 0:02:41.3]} 9... g6
{[%clk 0:02:49.6]} 10. Nf3 {[%clk 0:02:41.3]} 10... Bg7 {[%clk 0:02:49.6]} 11.
Qe3 {[%clk 0:02:41.7]} 11... Qxe3+ {[%clk 0:02:43.4]} 12. Bxe3 {[%clk
0:02:42.6]} 12... O-O {[%clk 0:02:20.7]} 13. Be2 {[%clk 0:02:42.2]} 13... e5
{[%clk 0:02:19.1]} 14. O-O {[%clk 0:02:42]} 14... h6 {[%clk 0:02:18.4]} 15. a4
{[%clk 0:02:41.5]} 15... Be6 {[%clk 0:02:17.2]} 16. a5 {[%clk 0:02:40.6]} 16...
e4 {[%clk 0:01:54.6]} 17. Nd2 {[%clk 0:02:39.2]} 17... f5 {[%clk 0:01:55.3]} 18.
Rfd1 {[%clk 0:02:35.9]} 18... Rfd8 {[%clk 0:01:34.7]} 19. a6 {[%clk 0:02:26.9]}
19... b6 {[%clk 0:01:14.6]} 20. Bc4 {[%clk 0:02:24.4]} 20... Kf7 {[%clk
0:01:14.2]} 21. Kf1 {[%clk 0:02:23.3]} 21... g5 {[%clk 0:01:12.5]} 22. g3 {[%clk
0:01:55.8]} 22... Be5 {[%clk 0:01:11.7]} 23. f4 {[%clk 0:01:51.7]} 23... gxf4
{[%clk 0:01:04.5]} 24. Bxf4 {[%clk 0:01:43.8]} 24... Bxf4 {[%clk 0:01:04.4]} 25.
gxf4 {[%clk 0:01:44.7]} 25... Kf6 {[%clk 0:00:55.4]} 26. Kf2 {[%clk 0:01:42.6]}
26... Ne7 {[%clk 0:00:45.1]} 27. Bxe6 {[%clk 0:00:46.3]} 27... Kxe6 {[%clk
0:00:45.1]} 28. Nc4 {[%clk 0:00:41.4]} 28... Nd5 {[%clk 0:00:44.4]} 29. Ne5
{[%clk 0:00:17.5]} 29... Nxf4 {[%clk 0:00:38.6]} 30. Nc6 {[%clk 0:00:18]} 30...
Nd3+ {[%clk 0:00:32.1]} 31. Ke3 {[%clk 0:00:18]} 31... Rdc8 {[%clk 0:00:31.3]}
32. Nd4+ {[%clk 0:00:18]} 32... Ke5 {[%clk 0:00:31.4]} 33. Nf3+ {[%clk
0:00:15.6]} 33... Kd5 {[%clk 0:00:27]} 34. Rxd3+ {[%clk 0:00:02.8]} 34... exd3
{[%clk 0:00:27.1]} 35. Rd1 {[%clk 0:00:02.4]} 35... Kc4 {[%clk 0:00:21.8]} 36.
Nd2+ {[%clk 0:00:01.8]} 36... Kb5 {[%clk 0:00:21.8]} 0-1

[Event "Early-Titled-Tuesday-Blitz-October-24-2023"]
[Site "Chess.com"]
[Date "2023.10.24"]
[Round "6"]
[White "tarno17"]
[Black "EdmundPlayer"]
[Result "1-0"]
[WhiteElo "2112"]
[BlackElo "2189"]
[TimeControl "180+1"]
[EndTime "9:04:59 PDT"]
[Termination "tarno17 won on time"]

1. e4 {[%clk 0:03:00.9]} 1... Nf6 {[%clk 0:02:57]} 2. e5 {[%clk 0:03:00]} 2...
Nd5 {[%clk 0:02:57]} 3. Bc4 {[%clk 0:03:00.2]} 3... Nb6 {[%clk 0:02:54.5]} 4.
Bb3 {[%clk 0:02:59.9]} 4... e6 {[%clk 0:02:52.2]} 5. Nf3 {[%clk 0:02:56.9]} 5...
a5 {[%clk 0:02:52.4]} 6. c3 {[%clk 0:02:55.7]} 6... Nc6 {[%clk 0:02:48.2]} 7.
O-O {[%clk 0:02:53.5]} 7... d5 {[%clk 0:02:45.3]} 8. d4 {[%clk 0:02:39.8]} 8...
Be7 {[%clk 0:02:26.3]} 9. Bc2 {[%clk 0:02:37.8]} 9... a4 {[%clk 0:02:15.3]} 10.
h3 {[%clk 0:02:33.5]} 10... Na5 {[%clk 0:02:11.4]} 11. Nh2 {[%clk 0:02:31.6]}
11... c5 {[%clk 0:02:05.1]} 12. Nd2 {[%clk 0:02:17.6]} 12... cxd4 {[%clk
0:02:01.9]} 13. cxd4 {[%clk 0:02:18.5]} 13... Bd7 {[%clk 0:02:01.6]} 14. Qg4
{[%clk 0:01:56]} 14... g6 {[%clk 0:01:56.5]} 15. Ndf3 {[%clk 0:01:46.6]} 15...
Bb5 {[%clk 0:01:19.7]} 16. Rd1 {[%clk 0:01:37.3]} 16... Rc8 {[%clk 0:01:15.8]}
17. Bb1 {[%clk 0:01:34.2]} 17... Rc7 {[%clk 0:00:57.3]} 18. Bh6 {[%clk
0:01:30.9]} 18... Qc8 {[%clk 0:00:53.6]} 19. Ng5 {[%clk 0:01:13.8]} 19... Nbc4
{[%clk 0:00:37.7]} 20. Bd3 {[%clk 0:00:51.7]} 20... Ba6 {[%clk 0:00:30.9]} 21.
Rac1 {[%clk 0:00:47.1]} 21... Nxb2 {[%clk 0:00:30.2]} 22. Rxc7 {[%clk
0:00:46.4]} 22... Qxc7 {[%clk 0:00:29.6]} 23. Bxa6 {[%clk 0:00:45.5]} 23... Nxd1
{[%clk 0:00:25.2]} 24. Bb5+ {[%clk 0:00:45.9]} 24... Nc6 {[%clk 0:00:22.3]} 25.
Qxd1 {[%clk 0:00:45.8]} 25... Qb6 {[%clk 0:00:21.1]} 26. Bxa4 {[%clk 0:00:44.2]}
26... Bxg5 {[%clk 0:00:18.5]} 27. Bxg5 {[%clk 0:00:44]} 27... Kd7 {[%clk
0:00:17.8]} 28. Ng4 {[%clk 0:00:41.6]} 28... Ra8 {[%clk 0:00:16.6]} 29. Nf6+
{[%clk 0:00:40.7]} 29... Kc8 {[%clk 0:00:16.7]} 30. Bb3 {[%clk 0:00:36.1]} 30...
Qxd4 {[%clk 0:00:16]} 31. Qc2 {[%clk 0:00:34.5]} 31... Qxe5 {[%clk 0:00:14.3]}
32. Nxh7 {[%clk 0:00:30.4]} 32... Kb8 {[%clk 0:00:10.6]} 33. Qc1 {[%clk
0:00:25.5]} 33... Nd4 {[%clk 0:00:09.1]} 34. Kh1 {[%clk 0:00:20.7]} 34... Ne2
{[%clk 0:00:06.2]} 35. Qd2 {[%clk 0:00:19]} 35... d4 {[%clk 0:00:04.6]} 36. Bc4
{[%clk 0:00:17.5]} 36... Qg7 {[%clk 0:00:01.5]} 37. Bxe2 {[%clk 0:00:17]} 37...
Qxh7 {[%clk 0:00:02]} 38. Bf4+ {[%clk 0:00:16.6]} 38... Kc8 {[%clk 0:00:01.5]}
39. Qc2+ {[%clk 0:00:16.9]} 1-0

[Event "Early-Titled-Tuesday-Blitz-October-24-2023"]
[Site "Chess.com"]
[Date "2023.10.24"]
[Round "6"]
[White "Khromkin"]
[Black "karinachess1"]
[Result "0-1"]
[WhiteElo "2501"]
[BlackElo "2634"]
[TimeControl "180+1"]
[EndTime "9:05:02 PDT"]
[Termination "karinachess1 won on time"]

1. d4 {[%clk 0:02:59.6]} 1... Nf6 {[%clk 0:02:59.3]} 2. c4 {[%clk 0:02:58.8]}
2... e6 {[%clk 0:02:59.5]} 3. Nf3 {[%clk 0:02:59.4]} 3... d5 {[%clk 0:02:59.8]}
4. Nc3 {[%clk 0:02:59.1]} 4... Bb4 {[%clk 0:02:57.6]} 5. Qa4+ {[%clk 0:02:58.6]}
5... Nc6 {[%clk 0:02:57.6]} 6. e3 {[%clk 0:02:59.3]} 6... O-O {[%clk 0:02:57.4]}
7. Bd2 {[%clk 0:02:59.9]} 7... a6 {[%clk 0:02:55.4]} 8. Qc2 {[%clk 0:02:59.8]}
8... dxc4 {[%clk 0:02:49.3]} 9. Bxc4 {[%clk 0:02:59]} 9... Bd6 {[%clk
0:02:49.9]} 10. O-O {[%clk 0:02:50.4]} 10... e5 {[%clk 0:02:39]} 11. h3 {[%clk
0:02:45.9]} 11... b5 {[%clk 0:02:30.5]} 12. Bb3 {[%clk 0:02:40.5]} 12... exd4
{[%clk 0:02:19.7]} 13. exd4 {[%clk 0:02:40.4]} 13... Bb7 {[%clk 0:02:11.2]} 14.
a3 {[%clk 0:02:36.7]} 14... Ne7 {[%clk 0:02:06.9]} 15. Ne5 {[%clk 0:02:29.9]}
15... c5 {[%clk 0:01:56.7]} 16. Bg5 {[%clk 0:02:00]} 16... cxd4 {[%clk
0:01:45.1]} 17. Nxf7 {[%clk 0:01:36.4]} 17... Rxf7 {[%clk 0:01:41.2]} 18. Bxf6
{[%clk 0:01:36.4]} 18... dxc3 {[%clk 0:01:21.8]} 19. Bxf7+ {[%clk 0:01:21.8]}
19... Kxf7 {[%clk 0:01:22.7]} 20. Bxc3 {[%clk 0:01:22.3]} 20... Kg8 {[%clk
0:01:01.6]} 21. Rad1 {[%clk 0:01:20.8]} 21... Qc7 {[%clk 0:00:58.6]} 22. Qb3+
{[%clk 0:01:16.1]} 22... Kh8 {[%clk 0:00:42.8]} 23. Qf7 {[%clk 0:01:13.1]} 23...
Rg8 {[%clk 0:00:41.1]} 24. Rfe1 {[%clk 0:01:03.2]} 24... Qc6 {[%clk 0:00:29.8]}
25. f3 {[%clk 0:00:46.6]} 25... Ng6 {[%clk 0:00:07.5]} 26. Re8 {[%clk
0:00:34.2]} 26... Bf8 {[%clk 0:00:04.2]} 27. Rxf8 {[%clk 0:00:25.7]} 27... Nxf8
{[%clk 0:00:03.1]} 28. Rd8 {[%clk 0:00:17]} 28... Qb6+ {[%clk 0:00:02.9]} 29.
Rd4 {[%clk 0:00:14.4]} 29... Ne6 {[%clk 0:00:03.2]} 30. Kh1 {[%clk 0:00:07.7]}
30... Nxd4 {[%clk 0:00:03.6]} 31. Qd7 {[%clk 0:00:02.3]} 31... Ne2 {[%clk
0:00:03.3]} 0-1